fUSD/lending_fUSD_20250611
["ID","MTS","AMOUNT","RATE_DAILY","PERIOD"]
[365453576,1749679851834,-570.70598231,0.00019342,2]
[365453577,1749679851843,-552.82,0.00019342,2]
[365453578,1749679851852,-490.0,0.00019342,2]
[365453579,1749679851862,-490.0,0.00019342,2]
[365453580,1749679851871,-490.0,0.00019342,2]
[365453581,1749679851881,-490.0,0.00019342,2]
[365453582,1749679851894,-9261.7,0.00019342,2]
[365453583,1749679851903,-490.0,0.00019342,2]
[365453584,1749679851912,-490.0,0.00019342,2]
[365453585,1749679851924,-490.0,0.00019342,2]
[365453586,1749679851934,-410.00000032,0.00019342,2]
[365453587,1749679851944,-1079.03,0.00019342,2]
[365453588,1749679851953,-490.0,0.00019342,2]
[365453589,1749679851963,-979.82,0.00019342,2]
[365453590,1749679851973,-1536.12,0.00019342,2]
[365453591,1749679851983,-1000.0,0.00019342,2]
[365453592,1749679851993,-693.35,0.00019342,2]
[365453593,1749679852003,-490.0,0.00019342,2]
[365453594,1749679852012,-1066.08,0.00019342,2]
[365453595,1749679852021,-490.0,0.00019342,2]
[365453596,1749679852031,-490.0,0.00019342,2]
[365453597,1749679852040,-490.0,0.00019342,2]
[365453598,1749679852050,-711.41,0.00019342,2]
[365453599,1749679852059,-694.36,0.00019342,2]
[365453600,1749679852069,-490.0,0.00019342,2]
[365453601,1749679852079,-773.18,0.00019342,2]
[365453602,1749679852089,-490.0,0.00019342,2]
[365453603,1749679852098,-748.22,0.00019342,2]
[365453604,1749679852107,-490.0,0.00019342,2]
[365453605,1749679852117,-490.0,0.00019342,2]
[365453606,1749679852126,-490.0,0.00019342,2]
[365453607,1749679852135,-1168.40773,0.00019342,2]
[365453608,1749679852144,-490.0,0.00019342,2]
[365453609,1749679852154,-490.0,0.00019342,2]
[365453610,1749679852163,-490.0,0.00019342,2]
[365453611,1749679852175,-490.0,0.00019342,2]
[365453612,1749679852184,-490.0,0.00019342,2]
[365453613,1749679852193,-490.0,0.00019342,2]
[365453614,1749679852203,-466.78132379,0.00019342,2]
[365453615,1749679852212,-519.88,0.00019342,2]
[365453616,1749679852222,-490.0,0.00019342,2]
[365453617,1749679852231,-249.77816879,0.00019342,2]
[365453618,1749679852241,-1339.12,0.00019342,2]
[365453619,1749679852250,-703.43,0.00019342,2]
[365453620,1749679852259,-490.0,0.00019342,2]
[365453621,1749679852269,-490.0,0.00019342,2]
[365453622,1749679852279,-470.0,0.00019342,2]
[365453623,1749679852289,-490.0,0.00019342,2]
[365453624,1749679852299,-1142.31,0.00019342,2]
[365453625,1749679852308,-490.0,0.00019342,2]
[365453626,1749679852318,-977.9,0.00019342,2]
[365453627,1749679852327,-490.0,0.00019342,2]
[365453628,1749679852336,-490.0,0.00019342,2]
[365453629,1749679852346,-727.46,0.00019342,2]
[365453630,1749679852356,-903.38,0.00019342,2]
[365453631,1749679852366,-936.21,0.00019342,2]
[365453632,1749679852376,-490.0,0.00019342,2]
[365453633,1749679852385,-490.0,0.00019342,2]
[365453634,1749679852395,-847.09,0.00019342,2]
[365453635,1749679852405,-6463.05,0.00019342,2]
[365453636,1749679852414,-490.0,0.00019342,2]
[365453637,1749679852429,-1332.55,0.00019342,2]
[365453638,1749679852439,-5664.59,0.00019342,2]
[365453639,1749679852447,-536.41,0.00019342,2]
[365453640,1749679852457,-490.0,0.00019342,2]
[365453641,1749679852467,-1282.56,0.00019342,2]
[365453642,1749679852476,-490.0,0.00019342,2]
[365453643,1749679852486,-490.0,0.00019342,2]
[365453644,1749679852496,-490.0,0.00019342,2]
[365453645,1749679852505,-3202.29,0.00019342,2]
[365453646,1749679852515,-490.0,0.00019342,2]
[365453647,1749679852525,-656.69,0.00019342,2]
[365453648,1749679852534,-490.0,0.00019342,2]
[365453649,1749679852544,-490.0,0.00019342,2]
[365453650,1749679852554,-2037.92,0.00019342,2]
[365453651,1749679852564,-490.0,0.00019342,2]
[365453652,1749679852573,-490.0,0.00019342,2]
[365453653,1749679852583,-490.0,0.00019342,2]
[365453654,1749679852592,-490.0,0.00019342,2]
[365453655,1749679852602,-490.0,0.00019342,2]
[365453656,1749679852612,-1036.65,0.00019342,2]
[365453657,1749679852622,-2825.61,0.00019342,2]
[365453658,1749679852631,-377.40329005,0.00019342,2]
[365453659,1749679852640,-490.0,0.00019342,2]
[365453660,1749679852650,-490.0,0.00019342,2]
[365453661,1749679852659,-490.0,0.00019342,2]
[365453662,1749679852672,-490.0,0.00019342,2]
[365453663,1749679852682,-490.0,0.00019342,2]
[365453664,1749679852691,-490.0,0.00019342,2]
[365453665,1749679852701,-490.0,0.00019342,2]
[365453666,1749679852711,-490.0,0.00019342,2]
[365453667,1749679852721,-490.0,0.00019342,2]
[365453668,1749679852730,-490.0,0.00019342,2]
[365453669,1749679852740,-490.0,0.00019342,2]
[365453670,1749679852750,-490.0,0.00019342,2]
[365453671,1749679852760,-490.0,0.00019342,2]
[365453672,1749679852769,-490.0,0.00019342,2]
[365453673,1749679852779,-1480.07,0.00019342,2]
[365453674,1749679852789,-1085.55,0.00019342,2]
[365453675,1749679852799,-490.0,0.00019342,2]
[365453676,1749679852809,-3703.53,0.00019342,2]
[365453677,1749679852819,-1400.93,0.00019342,2]
[365453678,1749679852829,-490.0,0.00019342,2]
[365453679,1749679852839,-490.0,0.00019342,2]
[365453680,1749679852849,-490.0,0.00019342,2]
[365453681,1749679852858,-1152.7,0.00019342,2]
[365453682,1749679852868,-834.61,0.00019342,2]
[365453683,1749679852877,-490.0,0.00019342,2]
[365453684,1749679852888,-497.07,0.00019342,2]
[365453685,1749679852898,-460.0,0.00019342,2]
[365453686,1749679852908,-1032.15,0.00019342,2]
[365453687,1749679852919,-490.0,0.00019342,2]
[365453688,1749679852930,-490.0,0.00019342,2]
[365453689,1749679852939,-490.0,0.00019342,2]
[365453690,1749679852949,-490.0,0.00019342,2]
[365453691,1749679852958,-2089.98,0.00019342,2]
[365453692,1749679852970,-490.0,0.00019342,2]
[365453693,1749679852980,-972.67,0.00019342,2]
[365453694,1749679852989,-401.6745686,0.00019342,2]
[365453695,1749679852999,-490.0,0.00019342,2]
[365453696,1749679853069,-490.0,0.00019342,2]
[365453697,1749679853079,-270.12387281,0.00019342,2]
[365453698,1749679853090,-1442.32,0.00019342,2]
[365453699,1749679853100,-490.0,0.00019342,2]
[365453700,1749679853109,-490.0,0.00019342,2]
[365453701,1749679853119,-490.0,0.00019342,2]
[365453702,1749679853127,-490.0,0.00019342,2]
[365453703,1749679853137,-490.0,0.00019342,2]
[365453704,1749679853146,-490.0,0.00019342,2]
[365453705,1749679853155,-671.28,0.00019342,2]
[365453706,1749679853164,-490.0,0.00019342,2]
[365453707,1749679853174,-825.9,0.00019342,2]
[365453708,1749679853183,-490.0,0.00019342,2]
[365453709,1749679853193,-490.0,0.00019342,2]
[365453710,1749679853201,-490.0,0.00019342,2]
[365453711,1749679853211,-490.0,0.00019342,2]
[365453712,1749679853220,-490.0,0.00019342,2]
[365453713,1749679853229,-490.0,0.00019342,2]
[365453714,1749679853238,-490.0,0.00019342,2]
[365453715,1749679853247,-490.0,0.00019342,2]
[365453716,1749679853256,-834.84,0.00019342,2]
[365453717,1749679853266,-497.36,0.00019342,2]
[365453718,1749679853275,-400.0,0.00019342,2]
[365453719,1749679853284,-8003.1,0.00019342,2]
[365453720,1749679853293,-936.66,0.00019342,2]
[365453721,1749679853302,-490.0,0.00019342,2]
[365453722,1749679853312,-1383.82,0.00019342,2]
[365453723,1749679853321,-490.0,0.00019342,2]
[365453724,1749679853330,-490.0,0.00019342,2]
[365453725,1749679853339,-490.0,0.00019342,2]
[365453726,1749679853348,-490.0,0.00019342,2]
[365453727,1749679853357,-1029.44,0.00019342,2]
[365453728,1749679853366,-490.0,0.00019342,2]
[365453729,1749679853375,-490.0,0.00019342,2]
[365453730,1749679853385,-490.0,0.00019342,2]
[365453731,1749679853394,-490.0,0.00019342,2]
[365453732,1749679853406,-490.0,0.00019342,2]
[365453733,1749679853415,-490.0,0.00019342,2]
[365453734,1749679853424,-490.0,0.00019342,2]
[365453735,1749679853434,-1407.12,0.00019342,2]
[365453736,1749679853443,-490.0,0.00019342,2]
[365453737,1749679853453,-490.0,0.00019342,2]
[365453738,1749679853462,-490.0,0.00019342,2]
[365453739,1749679853471,-490.0,0.00019342,2]
[365453740,1749679853480,-868.69,0.00019342,2]
[365453741,1749679853489,-490.0,0.00019342,2]
[365453742,1749679853498,-490.0,0.00019342,2]
[365453743,1749679853510,-1348.39,0.00019342,2]
[365453744,1749679853520,-490.0,0.00019342,2]
[365453745,1749679853530,-1755.13,0.00019342,2]
[365453746,1749679853539,-490.0,0.00019342,2]
[365453747,1749679853550,-490.0,0.00019342,2]
[365453748,1749679853559,-490.0,0.00019342,2]
[365453749,1749679853568,-490.0,0.00019342,2]
[365453750,1749679853577,-490.0,0.00019342,2]
[365453751,1749679853587,-490.0,0.00019342,2]
[365453752,1749679853597,-504.1,0.00019342,2]
[365453753,1749679853608,-490.0,0.00019342,2]
[365453754,1749679853617,-1066.0,0.00019342,2]
[365453755,1749679853626,-490.0,0.00019342,2]
[365453756,1749679853637,-490.0,0.00019342,2]
[365453757,1749679853648,-490.0,0.00019342,2]
[365453758,1749679853658,-490.0,0.00019342,2]
[365453759,1749679853668,-838.3,0.00019342,2]
[365453760,1749679853677,-490.0,0.00019342,2]
[365453761,1749679853686,-815.86,0.00019342,2]
[365453762,1749679853695,-13196.72,0.00019342,2]
[365453763,1749679853704,-490.0,0.00019342,2]
[365453764,1749679853713,-490.0,0.00019342,2]
[365453765,1749679853723,-475.94985731,0.00019342,2]
[365453766,1749679853731,-490.0,0.00019342,2]
[365453767,1749679853740,-490.0,0.00019342,2]
[365453768,1749679853749,-490.0,0.00019342,2]
[365453769,1749679853759,-490.0,0.00019342,2]
[365453770,1749679853768,-490.0,0.00019342,2]
[365453771,1749679853777,-490.0,0.00019342,2]
[365453772,1749679853787,-3931.42,0.00019342,2]
[365453773,1749679853796,-685.75,0.00019342,2]
[365453774,1749679853805,-2871.61,0.00019342,2]
[365453775,1749679853814,-1646.33,0.00019342,2]
[365453776,1749679853823,-480.0,0.00019342,2]
[365453777,1749679853832,-490.0,0.00019342,2]
[365453778,1749679853842,-1693.91,0.00019342,2]
[365453779,1749679853851,-1390.24,0.00019342,2]
[365453780,1749679853860,-490.0,0.00019342,2]
[365453781,1749679853870,-490.0,0.00019342,2]
[365453782,1749679853879,-490.0,0.00019342,2]
[365453783,1749679853890,-1113.45,0.00019342,2]
[365453784,1749679853899,-490.0,0.00019342,2]
[365453785,1749679853908,-490.0,0.00019342,2]
[365453786,1749679853918,-490.0,0.00019342,2]
[365453787,1749679853927,-1988.64,0.00019342,2]
[365453788,1749679853938,-751.67,0.00019342,2]
[365453789,1749679853948,-706.01,0.00019342,2]
[365453790,1749679853957,-490.0,0.00019342,2]
[365453791,1749679853967,-777.83,0.00019342,2]
[365453792,1749679853977,-570.32,0.00019342,2]
[365453793,1749679853986,-1777.15,0.00019342,2]
[365453794,1749679853995,-1103.72,0.00019342,2]
[365453795,1749679854004,-699.37,0.00019342,2]
[365453796,1749679854013,-480.0,0.00019342,2]
[365453797,1749679854022,-490.0,0.00019342,2]
[365453798,1749679854032,-2194.8,0.00019342,2]
[365453799,1749679854041,-784.43,0.00019342,2]
[365453800,1749679854050,-490.0,0.00019342,2]
[365453801,1749679854059,-490.0,0.00019342,2]
[365453802,1749679854068,-3072.09,0.00019342,2]
[365453803,1749679854077,-490.0,0.00019342,2]
[365453804,1749679854086,-490.0,0.00019342,2]
[365453805,1749679854095,-490.0,0.00019342,2]
[365453806,1749679854104,-490.0,0.00019342,2]
[365453807,1749679854113,-1262.02,0.00019342,2]
[365453808,1749679854121,-490.0,0.00019342,2]
[365453809,1749679854130,-490.0,0.00019342,2]
[365453810,1749679854139,-490.0,0.00019342,2]
[365453811,1749679854149,-490.0,0.00019342,2]
[365453812,1749679854158,-490.0,0.00019342,2]
[365453813,1749679854167,-490.0,0.00019342,2]
[365453814,1749679854176,-490.0,0.00019342,2]
[365453815,1749679854185,-490.0,0.00019342,2]
[365453816,1749679854194,-725.32,0.00019342,2]
[365453817,1749679854203,-490.0,0.00019342,2]
[365453818,1749679854212,-490.0,0.00019342,2]
[365453819,1749679854221,-490.0,0.00019342,2]
[365453820,1749679854230,-557.76,0.00019342,2]
[365453821,1749679854239,-490.0,0.00019342,2]
[365453822,1749679854248,-518.6,0.00019342,2]
[365453823,1749679854257,-3082.36,0.00019342,2]
[365453824,1749679854266,-490.0,0.00019342,2]
[365453825,1749679854275,-490.0,0.00019342,2]
[365453826,1749679854285,-490.0,0.00019342,2]
[365453827,1749679854294,-2032.83,0.00019342,2]
[365453828,1749679854303,-1073.45,0.00019342,2]
[365453829,1749679854312,-423.45,0.00019342,2]
[365453830,1749679854321,-490.0,0.00019342,2]
[365453831,1749679854330,-490.0,0.00019342,2]
[365453832,1749679854339,-440.0,0.00019342,2]
[365453833,1749679854348,-490.0,0.00019342,2]
[365453834,1749679854357,-490.0,0.00019342,2]
[365453835,1749679854367,-490.0,0.00019342,2]
[365453836,1749679854376,-490.0,0.00019342,2]
[365453837,1749679854385,-490.0,0.00019342,2]
[365453838,1749679854395,-490.0,0.00019342,2]
[365453839,1749679854404,-490.0,0.00019342,2]
[365453840,1749679854414,-490.0,0.00019342,2]
[365453841,1749679854424,-490.0,0.00019342,2]
[365453842,1749679854433,-1372.0,0.00019342,2]
[365453843,1749679854442,-490.0,0.00019342,2]
[365453844,1749679854451,-1412.72382,0.00019342,2]
[365453845,1749679854461,-684.94,0.00019342,2]
[365453846,1749679854470,-490.0,0.00019342,2]
[365453847,1749679854479,-572.75,0.00019342,2]
[365453848,1749679854489,-490.0,0.00019342,2]
[365453849,1749679854498,-1136.94,0.00019342,2]
[365453850,1749679854508,-227.71679474,0.00019342,2]
[365453851,1749679854517,-2664.18,0.00019342,2]
[365453852,1749679854526,-490.0,0.00019342,2]
[365453853,1749679854536,-2894.8,0.00019342,2]
[365453854,1749679854545,-490.0,0.00019342,2]
[365453855,1749679854555,-490.0,0.00019342,2]
[365453856,1749679854564,-5875.81,0.00019342,2]
[365453857,1749679854574,-490.0,0.00019342,2]
[365453858,1749679854583,-490.0,0.00019342,2]
[365453859,1749679854592,-706.94,0.00019342,2]
[365453860,1749679854602,-490.0,0.00019342,2]
[365453861,1749679854611,-490.0,0.00019342,2]
[365453862,1749679854621,-3039.18,0.00019342,2]
[365453863,1749679854630,-482.13529597,0.00019342,2]
[365453864,1749679854639,-659.68,0.00019342,2]
[365453865,1749679854648,-3151.88,0.00019342,2]
[365453866,1749679854658,-167.23831366,0.00019342,2]
[365453867,1749679854667,-167.23831367,0.00019342,2]
[365453868,1749679854677,-167.23831367,0.00019342,2]
[365453869,1749679854686,-167.23831367,0.00019342,2]
[365453870,1749679854695,-561.14303538,0.00019348,2]
[365453871,1749679854703,-5477.36557095,0.00019352,2]
[365453872,1749679854713,-151.48627974,0.0001937,2]
[365453873,1749679854722,-833.29909032,0.00019372,2]
[365453874,1749679854731,-579.98,0.0001938,2]
[365453875,1749679854740,-561.14303538,0.00019383,2]
[365453876,1749679854749,-200.84703792,0.00019383,2]
[365453877,1749679854759,-167.23831367,0.00019397,2]
[365453878,1749679854768,-166.02048437,0.00019397,2]
[365453879,1749679854778,-228.46816994,0.00019407,2]
[365453880,1749679854787,-561.14303538,0.00019417,2]
[365453881,1749679854797,-796.98,0.00019425,2]
[365453882,1749679854806,-5477.36557095,0.00019443,2]
[365453883,1749679854816,-561.14303538,0.00019452,2]
[365453884,1749679854825,-161.77322054,0.00019461,2]
[365453885,1749679854835,-759.3087673,0.00019463,2]
[365453886,1749679854844,-151.48627974,0.00019479,2]
[365453887,1749679854854,-561.14303538,0.00019486,2]
[365453888,1749679854863,-4528.9821379,0.00019496,2]
[365453889,1749679854872,-500.0,0.00019505,2]
[365453890,1749679854882,-164.63,0.00019505,2]
[365453891,1749679854895,-500.0,0.00019505,2]
[365453892,1749679854905,-3800.07,0.00019505,2]
[365453893,1749679854915,-3800.07,0.00019505,2]
[365453894,1749679854925,-490.0,0.00019506,2]
[365453895,1749679854936,-490.0,0.00019506,2]
[365453896,1749679854946,-612.26,0.00019506,2]
[365453897,1749679854956,-460.0,0.00019506,2]
[365453898,1749679854966,-490.0,0.00019506,2]
[365453899,1749679854975,-490.0,0.00019506,2]
[365453900,1749679854985,-490.0,0.00019506,2]
[365453901,1749679854994,-470.0,0.00019506,2]
[365453902,1749679855003,-490.0,0.00019506,2]
[365453903,1749679855012,-634.32832182,0.00019506,2]
[365453904,1749679855022,-460.0,0.00019506,2]
[365453905,1749679855031,-490.0,0.00019506,2]
[365453906,1749679855041,-490.0,0.00019506,2]
[365453907,1749679855050,-470.0,0.00019506,2]
[365453908,1749679855059,-460.0,0.00019506,2]
[365453909,1749679855069,-490.0,0.00019506,2]
[365453910,1749679855078,-475.62,0.00019506,2]
[365453911,1749679855087,-490.0,0.00019506,2]
[365453912,1749679855096,-460.0,0.00019506,2]
[365453913,1749679855106,-490.0,0.00019506,2]
[365453914,1749679855115,-490.0,0.00019506,2]
[365453915,1749679855125,-490.0,0.00019506,2]
[365453916,1749679855134,-276.41655741,0.00019506,2]
[365453917,1749679855143,-490.0,0.00019506,2]
[365453918,1749679855152,-490.0,0.00019506,2]
[365453919,1749679855161,-490.0,0.00019506,2]
[365453920,1749679855171,-336.16,0.00019506,2]
[365453921,1749679855181,-470.0,0.00019506,2]
[365453922,1749679855190,-490.0,0.00019506,2]
[365453923,1749679855199,-470.0,0.00019506,2]
[365453924,1749679855209,-490.0,0.00019506,2]
[365453925,1749679855218,-460.0,0.00019506,2]
[365453926,1749679855227,-490.0,0.00019506,2]
[365453927,1749679855237,-243.41998658,0.00019506,2]
[365453928,1749679855246,-490.0,0.00019506,2]
[365453929,1749679855255,-237.41776318,0.00019506,2]
[365453930,1749679855265,-435.11,0.00019506,2]
[365453931,1749679855274,-480.0,0.00019506,2]
[365453932,1749679855283,-490.0,0.00019506,2]
[365453933,1749679855292,-490.0,0.00019506,2]
[365453934,1749679855302,-490.0,0.00019506,2]
[365453935,1749679855311,-490.0,0.00019506,2]
[365453936,1749679855321,-490.0,0.00019506,2]
[365453937,1749679855330,-490.0,0.00019506,2]
[365453938,1749679855339,-490.0,0.00019506,2]
[365453939,1749679855348,-490.0,0.00019506,2]
[365453940,1749679855358,-490.0,0.00019506,2]
[365453941,1749679855367,-490.0,0.00019506,2]
[365453942,1749679855377,-490.0,0.00019506,2]
[365453943,1749679855387,-480.0,0.00019506,2]
[365453944,1749679855396,-490.0,0.00019506,2]
[365453945,1749679855406,-490.0,0.00019506,2]
[365453946,1749679855415,-490.0,0.00019506,2]
[365453947,1749679855426,-490.0,0.00019506,2]
[365453948,1749679855436,-490.0,0.00019506,2]
[365453949,1749679855445,-490.0,0.00019506,2]
[365453950,1749679855455,-490.0,0.00019506,2]
[365453951,1749679855466,-490.0,0.00019506,2]
[365453952,1749679855475,-490.0,0.00019506,2]
[365453953,1749679855484,-490.0,0.00019506,2]
[365453954,1749679855494,-490.0,0.00019506,2]
[365453955,1749679855503,-490.0,0.00019506,2]
[365453956,1749679855512,-635.25,0.00019506,2]
[365453957,1749679855522,-490.0,0.00019506,2]
[365453958,1749679855532,-576.94,0.00019506,2]
[365453959,1749679855542,-250.0,0.00019506,2]
[365453960,1749679855551,-434.82789052,0.00019506,2]
[365453961,1749679855561,-490.0,0.00019506,2]
[365453962,1749679855571,-490.0,0.00019506,2]
[365453963,1749679855580,-480.0,0.00019506,2]
[365453964,1749679855590,-499.09,0.00019506,2]
[365453965,1749679855599,-480.0,0.00019506,2]
[365453966,1749679855609,-480.0,0.00019506,2]
[365453967,1749679855621,-490.0,0.00019506,2]
[365453968,1749679855631,-490.0,0.00019506,2]
[365453969,1749679855640,-490.0,0.00019506,2]
[365453970,1749679855651,-490.0,0.00019506,2]
[365453971,1749679855660,-460.0,0.00019506,2]
[365453972,1749679855671,-490.0,0.00019506,2]
[365453973,1749679855681,-857.86,0.00019506,2]
[365453974,1749679855691,-490.0,0.00019506,2]
[365453975,1749679855700,-1030.53,0.00019506,2]
[365453976,1749679855710,-490.0,0.00019506,2]
[365453977,1749679855720,-490.0,0.00019506,2]
[365453978,1749679855730,-504.12,0.00019506,2]
[365453979,1749679855740,-490.0,0.00019506,2]
[365453980,1749679855750,-490.0,0.00019506,2]
[365453981,1749679855760,-490.0,0.00019506,2]
[365453982,1749679855770,-544.79,0.00019506,2]
[365453983,1749679855780,-460.0,0.00019506,2]
[365453984,1749679855791,-490.0,0.00019506,2]
[365453985,1749679855800,-470.0,0.00019506,2]
[365453986,1749679855811,-490.0,0.00019506,2]
[365453987,1749679855820,-490.0,0.00019506,2]
[365453988,1749679855830,-796.27,0.00019506,2]
[365453989,1749679855840,-490.0,0.00019506,2]
[365453990,1749679855849,-490.0,0.00019506,2]
[365453991,1749679855859,-490.0,0.00019506,2]
[365453992,1749679855869,-490.0,0.00019506,2]
[365453993,1749679855878,-490.0,0.00019506,2]
[365453994,1749679855891,-490.0,0.00019506,2]
[365453995,1749679855901,-480.0,0.00019506,2]
[365453996,1749679855911,-1147.4,0.00019506,2]
[365453997,1749679855920,-480.0,0.00019506,2]
[365453998,1749679855931,-247.37122454,0.00019506,2]
[365453999,1749679855941,-569.34,0.00019506,2]
[365454000,1749679855951,-490.0,0.00019506,2]
[365454001,1749679855962,-490.0,0.00019506,2]
[365454002,1749679855973,-490.0,0.00019506,2]
[365454003,1749679855983,-490.0,0.00019506,2]
[365454004,1749679855992,-490.0,0.00019506,2]
[365454005,1749679856002,-490.0,0.00019506,2]
[365454006,1749679856011,-480.0,0.00019506,2]
[365454007,1749679856021,-490.0,0.00019506,2]
[365454008,1749679856031,-490.0,0.00019506,2]
[365454009,1749679856040,-470.0,0.00019506,2]
[365454010,1749679856050,-490.0,0.00019506,2]
[365454011,1749679856060,-490.0,0.00019506,2]
[365454012,1749679856069,-821.38,0.00019506,2]
[365454013,1749679856079,-490.0,0.00019506,2]
[365454014,1749679856088,-480.0,0.00019506,2]
[365454015,1749679856098,-490.0,0.00019506,2]
[365454016,1749679856108,-490.0,0.00019506,2]
[365454017,1749679856117,-400.0,0.00019506,2]
[365454018,1749679856127,-490.0,0.00019506,2]
[365454019,1749679856137,-490.0,0.00019506,2]
[365454020,1749679856146,-490.0,0.00019506,2]
[365454021,1749679856155,-210.78698246,0.00019506,2]
[365454022,1749679856166,-490.0,0.00019506,2]
[365454023,1749679856177,-490.0,0.00019506,2]
[365454024,1749679856187,-490.0,0.00019506,2]
[365454025,1749679856196,-490.0,0.00019506,2]
[365454026,1749679856206,-490.0,0.00019506,2]
[365454027,1749679856216,-559.77,0.00019506,2]
[365454028,1749679856225,-490.0,0.00019506,2]
[365454029,1749679856235,-470.0,0.00019506,2]
[365454030,1749679856245,-490.0,0.00019506,2]
[365454031,1749679856254,-410.0,0.00019506,2]
[365454032,1749679856264,-618.92,0.00019506,2]
[365454033,1749679856273,-490.0,0.00019506,2]
[365454034,1749679856283,-490.0,0.00019506,2]
[365454035,1749679856292,-490.0,0.00019506,2]
[365454036,1749679856301,-490.0,0.00019506,2]
[365454037,1749679856311,-470.0,0.00019506,2]
[365454038,1749679856320,-281.20000045,0.00019506,2]
[365454039,1749679856330,-454.58661117,0.00019506,2]
[365454040,1749679856339,-490.0,0.00019506,2]
[365454041,1749679856350,-490.0,0.00019506,2]
[365454042,1749679856359,-277.55557506,0.00019506,2]
[365454043,1749679856368,-588.6,0.00019506,2]
[365454044,1749679856378,-490.0,0.00019506,2]
[365454045,1749679856387,-490.0,0.00019506,2]
[365454046,1749679856396,-164.01037345,0.00019506,2]
[365454047,1749679856406,-490.0,0.00019506,2]
[365454048,1749679856415,-552.36,0.00019506,2]
[365454049,1749679856426,-490.0,0.00019506,2]
[365454050,1749679856436,-490.0,0.00019506,2]
[365454051,1749679856445,-490.0,0.00019506,2]
[365454052,1749679856455,-470.0,0.00019506,2]
[365454053,1749679856464,-941.26,0.00019506,2]
[365454054,1749679856474,-490.0,0.00019506,2]
[365454055,1749679856483,-470.0,0.00019506,2]
[365454056,1749679856493,-230.23412904,0.00019506,2]
[365454057,1749679856502,-490.0,0.00019506,2]
[365454058,1749679856512,-490.0,0.00019506,2]
[365454059,1749679856522,-490.0,0.00019506,2]
[365454060,1749679856531,-490.0,0.00019506,2]
[365454061,1749679856541,-490.0,0.00019506,2]
[365454062,1749679856551,-490.0,0.00019506,2]
[365454063,1749679856560,-997.32,0.00019506,2]
[365454064,1749679856570,-490.0,0.00019506,2]
[365454065,1749679856580,-256.66826455,0.00019506,2]
[365454066,1749679856590,-662.42,0.00019506,2]
[365454067,1749679856599,-480.0,0.00019506,2]
[365454068,1749679856609,-490.0,0.00019506,2]
[365454069,1749679856619,-460.0,0.00019506,2]
[365454070,1749679856628,-490.0,0.00019506,2]
[365454071,1749679856638,-490.0,0.00019506,2]
[365454072,1749679856647,-420.0,0.00019506,2]
[365454073,1749679856658,-490.0,0.00019506,2]
[365454074,1749679856668,-490.0,0.00019506,2]
[365454075,1749679856677,-430.0,0.00019506,2]